bitfinex/quotes_SOLUSD_20241116
["timestamp","ask_amount","ask_price","bid_price","bid_amount"]
[1731755994998,13.94692045,217.44,217.39,15.0366]
[1731755995182,18.54552045,217.46,217.39,15.0366]
[1731755995807,18.54552045,217.46,217.39,28.98352045]
[1731755996581,4.5986,217.46,217.39,28.98352045]
[1731755996790,13.94692045,217.48,217.41,13.94692045]
[1731755997001,13.94692045,217.49,217.41,13.94692045]
[1731755997991,13.94692045,217.49,217.42,13.94692045]
[1731755998501,13.94692045,217.5,217.43,13.94692045]
[1731756000104,4.5979,217.49,217.43,13.94692045]
[1731756001191,18.54442045,217.51,217.43,18.54592045]
[1731756001703,13.94692045,217.48,217.4,13.94692045]
[1731756002015,4.5983,217.47,217.41,13.94692045]
[1731756002506,4.5983,217.47,217.42,13.94692045]
[1731756002888,4.598,217.49,217.44,13.94692045]
[1731756003407,4.598,217.49,217.43,13.94692045]
[1731756003616,4.598,217.49,217.42,13.94692045]
[1731756003617,18.54492045,217.49,217.42,13.94692045]
[1731756003992,13.94692045,217.48,217.41,13.94692045]
[1731756004713,4.598,217.49,217.41,13.94692045]
[1731756004714,18.54492045,217.49,217.41,13.94692045]
[1731756005012,13.52792031,217.49,217.42,8.92992031]
[1731756006011,4.598,217.49,217.42,8.92992031]
[1731756006593,13.52742031,217.51,217.44,8.92992031]
[1731756008691,13.52742031,217.51,217.4,4.69347462]
[1731756008895,13.52742031,217.51,217.43,8.92992031]
[1731756009116,13.52742031,217.51,217.44,8.92992031]
[1731756009508,8.92992031,217.48,217.38,0.5190288]
[1731756009699,46.897484,217.5,217.38,0.5190288]
[1731756009899,8.92992031,217.47,217.39,8.92992031]
[1731756010216,8.92992031,217.47,217.38,5.1191288]
[1731756010391,8.92992031,217.47,217.39,8.92992031]
[1731756010810,4.5985,217.46,217.39,8.92992031]
[1731756011602,8.92992031,217.44,217.38,0.5190288]
[1731756011827,8.92992031,217.43,217.38,0.5190288]
[1731756013415,4.5993,217.42,217.38,0.5190288]
[1731756015316,8.92992031,217.47,217.39,8.92992031]
[1731756015520,8.92992031,217.47,217.4,8.92992031]
[1731756016422,8.92992031,217.47,217.39,8.92992031]
[1731756016719,8.92992031,217.46,217.39,8.92992031]
[1731756017725,4.5979,217.49,217.39,8.92992031]
[1731756017726,8.92992031,217.47,217.4,8.92992031]
[1731756018095,8.92992031,217.48,217.4,8.92992031]
[1731756018423,13.52672031,217.54,217.47,8.92992031]
[1731756018634,4.5955,217.6,217.49,8.92992031]
[1731756018927,8.92992031,217.56,217.49,8.92992031]
[1731756019626,8.92992031,217.55,217.47,8.92992031]
[1731756019801,8.92992031,217.53,217.46,8.92992031]
[1731756021019,13.94692082,217.55,217.48,13.94692082]
[1731756021598,13.94692082,217.54,217.47,13.94692082]
[1731756022025,18.54392082,217.54,217.47,13.94692082]
[1731756023228,13.94692082,217.5,217.42,13.94692082]
[1731756023514,13.94692082,217.47,217.39,18.54682082]
[1731756023731,13.94692082,217.45,217.38,0.5190288]
[1731756023904,13.94692082,217.45,217.38,14.46594962]
[1731756024098,13.94692082,217.46,217.39,13.94692082]
[1731756025310,4.5987,217.45,217.38,14.46594962]
[1731756025511,4.5987,217.45,217.39,13.94692082]
[1731756026229,18.54562082,217.45,217.38,14.46594962]
[1731756026926,13.94692082,217.45,217.38,14.46594962]
[1731756027101,13.94692082,217.46,217.39,13.94692082]
[1731756027299,13.94692082,217.43,217.38,0.5190288]
[1731756027522,13.94692082,217.46,217.39,13.94692082]
[1731756027827,13.94692082,217.45,217.38,14.46594962]
[1731756028308,13.94692082,217.43,217.38,0.5190288]
[1731756028504,13.94692082,217.44,217.38,0.5190288]
[1731756028705,13.94692082,217.43,217.38,0.5190288]
[1731756029024,4.5993,217.42,217.38,0.0190288]
[1731756030524,13.94692082,217.42,217.38,0.0190288]
[1731756031626,13.94692082,217.43,217.38,0.0190288]
[1731756032735,4.5993,217.42,217.38,0.0190288]
[1731756035811,13.94692082,217.41,217.38,0.0190288]
[1731756037316,13.94692082,217.42,217.38,0.0190288]
[1731756037906,13.94692082,217.45,217.38,0.0190288]
[1731756038431,13.94692082,217.41,217.38,0.0190288]
[1731756039113,0.09367462,217.49,217.38,0.0190288]
[1731756039313,13.94692082,217.44,217.38,0.0190288]
[1731756039829,59.868784,217.5,217.4,13.94692082]
[1731756039830,13.94692082,217.47,217.4,13.94692082]
[1731756040131,13.94692082,217.44,217.38,0.0190288]
[1731756040333,4.5977,217.5,217.4,13.94692082]
[1731756040534,13.94692082,217.48,217.41,14.07241082]
[1731756040725,4.5977,217.5,217.41,0.12549]
[1731756040935,18.54512082,217.48,217.41,0.12549]
[1731756041510,18.54512082,217.48,217.41,4.5995]
[1731756041712,13.94692082,217.48,217.41,18.54642082]
[1731756041924,13.94692082,217.49,217.42,13.94692082]
[1731756042934,22.39261782,217.58,217.46,8.92942146]
[1731756043110,7.13831782,217.59,217.49,9.05491146]
[1731756043428,8.92942146,217.56,217.49,9.05491146]
[1731756043607,8.92942146,217.55,217.49,0.12549]
[1731756043809,4.5959,217.59,217.49,0.12549]
[1731756044031,8.92942146,217.56,217.49,0.12549]
[1731756044629,8.92942146,217.56,217.48,13.52742146]
[1731756044815,13.94389974,217.56,217.48,18.54189974]
[1731756045532,18.54019974,217.57,217.49,13.94389974]
[1731756046315,4.5958,217.59,217.53,13.94389974]
[1731756046508,13.94389974,217.6,217.53,13.94389974]
[1731756047127,13.94389974,217.61,217.53,13.94389974]
[1731756047317,13.94389974,217.62,217.54,13.94389974]
[1731756047628,13.94389974,217.58,217.52,0.12549]
[1731756047815,13.94389974,217.57,217.51,0.12549]
[1731756048022,13.94389974,217.59,217.52,13.94389974]
[1731756048641,13.94389974,217.59,217.51,18.66678974]
[1731756049137,13.94389974,217.57,217.51,4.72289]
[1731756049334,13.94389974,217.56,217.5,16.2335]
[1731756049637,13.94389974,217.59,217.51,13.94389974]
[1731756050514,13.94389974,217.59,217.52,13.94389974]
[1731756050715,13.94389974,217.6,217.52,13.94389974]
[1731756051533,18.53949974,217.6,217.52,13.94389974]
[1731756051712,18.53949974,217.6,217.51,4.5973]
[1731756051713,4.5956,217.6,217.53,13.94389974]
[1731756051913,13.94389974,217.63,217.55,13.94389974]
[1731756052112,13.94389974,217.65,217.58,13.94389974]
[1731756052337,13.94389974,217.64,217.57,13.94389974]
[1731756052635,13.94389974,217.64,217.56,13.94389974]
[1731756052839,13.94389974,217.63,217.56,13.94389974]
[1731756053027,13.94389974,217.61,217.54,0.12549]
[1731756053222,4.5938,217.68,217.51,4.5973]
[1731756053223,13.94389974,217.58,217.51,13.94389974]
[1731756053434,18.53989974,217.58,217.51,13.94389974]
[1731756053942,13.94389974,217.59,217.51,13.94389974]
[1731756054116,13.94389974,217.59,217.52,13.94389974]
[1731756054827,18.53969974,217.59,217.52,13.94389974]
[1731756055611,13.94389974,217.58,217.51,4.5974]
[1731756055817,13.94389974,217.57,217.51,4.5974]
[1731756056532,13.94389974,217.57,217.5,16.2335]
[1731756056735,13.94389974,217.55,217.5,16.2335]
[1731756057032,13.94389974,217.54,217.48,6.3882]
[1731756057235,13.94389974,217.54,217.45,15.5404]
[1731756057236,13.94389974,217.53,217.45,15.5404]
[1731756057445,13.94389974,217.52,217.45,15.5404]
[1731756057738,13.94389974,217.49,217.45,15.5404]
[1731756057919,18.54189974,217.49,217.45,15.5404]
[1731756058319,13.94389974,217.48,217.43,6.0621]
[1731756060640,18.54209974,217.48,217.43,6.0621]
[1731756060843,13.94389974,217.47,217.43,6.0621]
[1731756061215,13.94389974,217.53,217.45,13.94389974]
[1731756061420,4.5964,217.56,217.47,13.94389974]
[1731756061421,13.94389974,217.54,217.47,13.94389974]
[1731756061726,13.94389974,217.54,217.46,18.54229974]
[1731756061929,13.94389974,217.53,217.46,18.54229974]
[1731756062133,13.94389974,217.51,217.44,18.54269974]
[1731756062326,13.94389974,217.53,217.46,14.06938974]
[1731756062520,13.94389974,217.54,217.47,13.94389974]
[1731756062839,13.94389974,217.52,217.45,14.19487974]
[1731756063061,13.94389974,217.52,217.45,4.84958]
[1731756063542,13.94389974,217.5,217.44,0.12549]
[1731756063842,13.94389974,217.49,217.44,0.12549]
[1731756064029,13.94389974,217.49,217.43,6.0621]
[1731756064637,13.94389974,217.5,217.43,20.00599974]
[1731756065024,13.94389974,217.51,217.43,20.00599974]
[1731756065219,18.54099974,217.53,217.45,13.94389974]
[1731756066522,18.54099974,217.53,217.44,4.72429]
[1731756066726,13.94389974,217.52,217.44,4.72429]
[1731756066930,13.94389974,217.52,217.45,13.94389974]
[1731756067247,18.54059974,217.55,217.48,13.94389974]
[1731756067442,13.94389974,217.55,217.48,13.94389974]
[1731756067747,18.54059974,217.55,217.48,13.94389974]
[1731756069241,18.54059974,217.55,217.48,0.12549]
[1731756070320,18.54059974,217.55,217.48,18.66738974]
[1731756070523,13.94389974,217.54,217.48,4.72349]
[1731756071635,13.94389974,217.55,217.48,4.72349]
[1731756072352,13.94389974,217.54,217.48,4.72349]
[1731756073047,13.94389974,217.54,217.48,4.598]
[1731756074429,13.94389974,217.58,217.5,13.94389974]
[1731756074644,13.94389974,217.59,217.51,13.94389974]
[1731756075439,4.596,217.58,217.51,13.94389974]
[1731756075638,11.4854,217.67,217.56,13.94389974]
[1731756075947,16.3,217.69,217.56,13.94389974]
[1731756075948,13.94389974,217.64,217.56,13.94389974]
[1731756076144,13.94389974,217.64,217.57,13.94389974]
[1731756076450,13.94389974,217.64,217.56,13.94389974]
[1731756076864,13.94389974,217.62,217.56,4.5963]
[1731756077242,13.94389974,217.62,217.55,13.94389974]
[1731756077429,13.94389974,217.62,217.55,18.54039974]
[1731756077743,4.5948,217.64,217.54,13.94389974]
[1731756077949,13.94389974,217.59,217.52,20.08929974]
[1731756078152,13.94389974,217.58,217.52,6.1454]
[1731756079445,4.5958,217.59,217.53,13.94389974]
[1731756080036,13.94389974,217.6,217.53,13.94389974]
[1731756080243,13.94389974,217.62,217.55,13.94389974]
[1731756081037,18.53889974,217.63,217.56,13.94389974]
[1731756081351,4.68777462,217.67,217.56,13.94389974]
[1731756081531,13.94389974,217.62,217.55,18.54049974]
[1731756081735,13.94389974,217.62,217.55,13.94389974]
[1731756082139,13.94389974,217.66,217.59,13.94389974]
[1731756082348,18.53799974,217.67,217.6,13.94389974]
[1731756082535,13.94389974,217.66,217.59,13.94389974]
[1731756082848,13.94389974,217.66,217.58,30.38609974]
[1731756083048,13.94389974,217.65,217.58,30.38609974]
[1731756083540,13.94389974,217.64,217.58,16.4422]
[1731756083738,13.94389974,217.64,217.58,21.0381]
[1731756084651,13.94389974,217.66,217.58,21.0381]
[1731756084854,13.94389974,217.66,217.58,34.98199974]
[1731756085228,13.94389974,217.66,217.59,13.94389974]
[1731756085949,13.94389974,217.67,217.6,13.94389974]
[1731756086633,4.5944,217.66,217.6,13.94389974]
[1731756087155,13.94389974,217.67,217.6,13.94389974]
[1731756087452,13.94389974,217.69,217.62,13.94389974]
[1731756087953,18.53739974,217.7,217.62,13.94389974]
[1731756088465,18.53739974,217.7,217.63,13.94389974]
[1731756088466,4.5935,217.7,217.63,13.94389974]
[1731756088750,4.5935,217.7,217.64,13.94389974]
[1731756089140,18.53699974,217.72,217.65,13.94389974]
[1731756089335,4.5931,217.72,217.65,13.94389974]
[1731756089538,18.53699974,217.72,217.65,13.94389974]
[1731756089747,13.94389974,217.71,217.64,13.94389974]
[1731756090061,13.94389974,217.7,217.63,13.94389974]
[1731756090350,18.53739974,217.7,217.63,13.94389974]
[1731756091158,13.94389974,217.67,217.6,13.94389974]
[1731756091372,13.94389974,217.66,217.59,13.94389974]
[1731756091649,13.94389974,217.68,217.61,13.94389974]
[1731756092352,13.94389974,217.68,217.61,18.53909974]
[1731756093437,18.53769974,217.69,217.62,13.94389974]
[1731756094251,4.5938,217.69,217.63,13.94389974]
[1731756094635,18.53769974,217.69,217.62,13.94389974]
[1731756095646,13.94389974,217.68,217.61,13.94389974]
[1731756095845,13.94389974,217.65,217.58,16.4422]
[1731756096042,13.94389974,217.65,217.58,30.38609974]
[1731756096657,13.94389974,217.65,217.59,13.94389974]
[1731756097653,13.94389974,217.66,217.59,13.94389974]
[1731756097860,18.53759974,217.69,217.62,13.94389974]
[1731756098338,13.94389974,217.68,217.61,13.94389974]
[1731756098955,18.53759974,217.69,217.62,13.94389974]
[1731756101448,13.94389974,217.7,217.63,13.94389974]
[1731756102141,13.94389974,217.69,217.62,28.371984]
[1731756102346,13.94389974,217.69,217.62,42.31588374]
[1731756103539,13.94389974,217.69,217.62,18.53899974]
[1731756103953,18.53749974,217.7,217.63,13.94389974]
[1731756104268,18.53699974,217.72,217.65,13.94389974]
[1731756104649,14.03757436,217.7,217.6,23.902374]
[1731756104851,13.94389974,217.68,217.61,13.94389974]
[1731756105240,13.94389974,217.67,217.6,13.94389974]
[1731756105437,13.94389974,217.65,217.59,4.5957]
[1731756105659,13.94389974,217.65,217.59,18.53959974]
[1731756106070,13.94389974,217.66,217.59,18.53959974]
[1731756106358,13.94389974,217.65,217.59,18.53959974]
[1731756106876,13.94389974,217.66,217.59,18.53959974]
[1731756108173,13.94389974,217.66,217.6,13.94389974]
[1731756108570,13.94389974,217.65,217.59,13.94389974]
[1731756108869,18.53809974,217.67,217.6,13.94389974]
[1731756109054,13.94389974,217.66,217.59,13.94389974]
[1731756109759,13.94389974,217.66,217.59,18.53959974]
[1731756110347,18.53809974,217.67,217.6,13.94389974]
[1731756110745,13.94389974,217.67,217.6,13.94389974]
[1731756110969,13.94389974,217.68,217.62,13.94389974]
[1731756113257,13.94389974,217.68,217.61,13.94389974]
[1731756114285,13.94389974,217.68,217.61,18.53909974]
[1731756114465,13.94389974,217.68,217.62,13.94389974]
[1731756114664,13.94389974,217.67,217.61,4.5952]
[1731756114868,13.94389974,217.68,217.61,18.53909974]
[1731756115464,18.53779974,217.68,217.61,18.53909974]
[1731756118760,13.94389974,217.67,217.6,13.94389974]
[1731756119488,13.94389974,217.65,217.58,18.53989974]
[1731756120876,8.91632053,217.65,217.59,8.91632053]
[1731756121085,16.0749,217.73,217.61,8.91632053]
[1731756121378,16.0749,217.73,217.59,4.5957]
[1731756121379,8.91632053,217.69,217.62,8.91632053]
[1731756121981,8.91632053,217.7,217.63,8.91632053]
[1731756122184,4.5936,217.69,217.63,8.91632053]
[1731756122377,13.50992053,217.69,217.62,8.91632053]
[1731756122688,8.91632053,217.68,217.62,8.91632053]
[1731756122887,8.91632053,217.66,217.57,0.12549]
[1731756123191,8.91632053,217.65,217.58,8.91632053]
[1731756123682,8.91632053,217.66,217.59,8.91632053]
[1731756123886,13.50992053,217.69,217.62,8.91632053]
[1731756124771,8.91632053,217.64,217.57,0.12549]
[1731756125078,8.91632053,217.64,217.57,9.04181053]
[1731756125286,8.91632053,217.63,217.57,9.04181053]
[1731756125663,8.91632053,217.64,217.57,13.63791053]
[1731756126277,8.91632053,217.64,217.57,4.72159]
[1731756126474,8.91632053,217.64,217.57,13.63791053]
[1731756126910,8.91632053,217.64,217.58,8.91632053]
[1731756127288,8.91632053,217.64,217.59,4.5957]
[1731756128377,8.91632053,217.64,217.58,8.91632053]
[1731756129593,8.91632053,217.65,217.59,13.51202053]
[1731756130170,0.09367462,217.68,217.64,8.91632053]
[1731756130391,0.09367462,217.68,217.67,8.91632053]
[1731756131062,0.09367462,217.68,217.67,9.04181053]
[1731756131484,0.09367462,217.68,217.67,13.63591053]
[1731756132895,0.09367462,217.68,217.67,18.63559093]
[1731756133188,0.09367462,217.68,217.67,18.51010093]
[1731756134284,0.09367462,217.68,217.65,0.12549]
[1731756134591,0.09367462,217.68,217.65,13.91600093]
[1731756135183,0.09367462,217.68,217.64,13.91600093]
[1731756135896,13.91600093,217.67,217.62,16.0599]
[1731756136191,14.00967555,217.68,217.61,13.91600093]
[1731756136391,4.5943,217.66,217.6,13.91600093]
[1731756136581,18.51030093,217.66,217.59,13.91600093]
[1731756136972,13.91600093,217.64,217.57,18.51220093]
[1731756137174,13.91600093,217.62,217.55,13.91600093]
[1731756138680,13.91600093,217.63,217.56,13.91600093]
[1731756139578,0.09367462,217.68,217.58,13.91600093]
[1731756139579,13.91600093,217.65,217.58,13.91600093]
[1731756140089,13.91600093,217.63,217.57,4.5962]
[1731756141471,13.91600093,217.62,217.57,4.5962]
[1731756141700,13.91600093,217.63,217.57,4.5962]
[1731756142275,13.91600093,217.62,217.55,13.91600093]
[1731756142475,13.91600093,217.59,217.5,15.5053]
[1731756142680,13.91600093,217.56,217.52,4.5972]
[1731756143089,23.776884,217.62,217.52,4.5972]
[1731756143398,13.91600093,217.54,217.47,20.13690093]
[1731756143883,13.91600093,217.55,217.48,18.51390093]
[1731756144777,13.91600093,217.55,217.49,0.12549]
[1731756145488,13.91600093,217.55,217.49,4.72319]
[1731756145706,13.91600093,217.54,217.47,13.91600093]
[1731756146209,13.91600093,217.52,217.45,21.1003]
[1731756146396,13.91600093,217.51,217.45,21.1003]
[1731756147395,13.91600093,217.49,217.43,4.5991]
[1731756147599,13.91600093,217.5,217.43,18.51510093]
[1731756147803,13.91600093,217.51,217.44,13.91600093]
[1731756148712,13.91600093,217.51,217.44,18.51480093]
[1731756149594,13.91600093,217.58,217.46,13.91600093]
[1731756149595,13.91600093,217.53,217.46,13.91600093]
[1731756149991,13.91600093,217.52,217.44,18.51480093]
[1731756150307,13.91600093,217.54,217.46,13.91600093]
[1731756150499,13.91600093,217.56,217.49,13.91600093]
[1731756151225,13.91600093,217.56,217.48,13.91600093]
[1731756151706,13.91600093,217.56,217.48,18.51400093]
[1731756151929,13.91600093,217.56,217.48,4.598]
[1731756152095,23.776884,217.62,217.51,13.91600093]
[1731756152096,13.91600093,217.58,217.51,13.91600093]
[1731756152296,13.91600093,217.57,217.5,13.91600093]
[1731756153227,13.91600093,217.57,217.5,18.51360093]
[1731756153405,13.91600093,217.58,217.51,13.91600093]
[1731756153596,18.51140093,217.61,217.54,13.91600093]
[1731756153797,13.91600093,217.62,217.55,13.91600093]
[1731756154518,26.9206,217.63,217.5,20.3119]
[1731756154519,13.91600093,217.61,217.54,13.91600093]
[1731756154826,13.91600093,217.61,217.54,18.51270093]
[1731756155409,18.51120093,217.62,217.55,13.91600093]
[1731756156525,13.91600093,217.61,217.54,13.91600093]
[1731756156707,18.51120093,217.62,217.54,13.91600093]
[1731756157307,13.91600093,217.59,217.52,0.12549]
[1731756157504,13.91600093,217.59,217.52,14.04149093]
[1731756157704,13.91600093,217.59,217.52,18.63869093]
[1731756158321,13.91600093,217.59,217.5,29.63030093]
[1731756158322,13.91600093,217.57,217.5,29.63030093]
[1731756159219,13.91600093,217.56,217.5,15.7143]
[1731756159605,13.91600093,217.55,217.48,13.91600093]
[1731756160131,13.91600093,217.57,217.5,13.91600093]
[1731756160308,13.91600093,217.56,217.49,13.91600093]
[1731756160507,13.91600093,217.55,217.48,13.91600093]
[1731756160717,13.91600093,217.55,217.48,18.51400093]
[1731756161425,13.91600093,217.5,217.44,20.3131]
[1731756162423,0.09367462,217.57,217.44,34.22910093]
[1731756162629,13.91600093,217.51,217.44,34.22910093]
[1731756163123,13.91600093,217.54,217.47,13.91600093]
[1731756163327,13.91600093,217.55,217.48,13.91600093]
[1731756163722,13.91600093,217.54,217.47,13.91600093]
[1731756164226,13.91600093,217.54,217.47,18.51420093]
[1731756164937,13.91600093,217.53,217.47,4.5982]
[1731756165325,13.91600093,217.48,217.33,28.85224521]
[1731756165519,13.91600093,217.48,217.23,82.48862777]
[1731756165520,13.91600093,217.34,217.27,3.24]
[1731756165708,13.91600093,217.34,217.24,13.91600093]
[1731756166025,13.91600093,217.34,217.26,13.91600093]
[1731756166210,13.91600093,217.36,217.26,13.91600093]
[1731756168506,13.91600093,217.33,217.27,0.12549]
[1731756168805,13.91600093,217.33,217.26,0.12549]
[1731756169017,13.91600093,217.35,217.27,13.91600093]
[1731756169212,13.91600093,217.37,217.29,13.91600093]
[1731756169628,13.91600093,217.36,217.28,13.91600093]
[1731756170112,13.91600093,217.34,217.26,13.91600093]
[1731756171228,13.91600093,217.36,217.28,13.91600093]
[1731756171432,13.91600093,217.36,217.29,13.91600093]
[1731756171639,13.91600093,217.37,217.3,13.91600093]
[1731756173522,0.09367462,217.36,217.3,13.91600093]
[1731756173920,13.91600093,217.39,217.32,13.91600093]
[1731756174141,13.91600093,217.4,217.33,13.91600093]
[1731756175142,0.09367462,217.39,217.33,13.91600093]
[1731756175335,13.91600093,217.41,217.34,13.91600093]
[1731756175643,13.91600093,217.41,217.32,70.0]
[1731756175942,13.91600093,217.41,217.34,13.91600093]
[1731756176150,13.91600093,217.43,217.36,13.91600093]
[1731756176721,0.09367462,217.42,217.37,13.91600093]
[1731756177747,13.91600093,217.46,217.39,13.91600093]
[1731756178045,161.8,217.57,217.35,70.0]
[1731756178046,13.91600093,217.48,217.41,13.91600093]
[1731756178220,0.09367462,217.47,217.41,13.91600093]
[1731756179139,0.09367462,217.47,217.35,70.2]
[1731756179347,0.09367462,217.47,217.41,13.91600093]
[1731756181636,13.91600093,217.5,217.43,13.91600093]
[1731756182546,0.09367462,217.49,217.44,13.91600093]
[1731756182853,13.91600093,217.52,217.45,13.91600093]
[1731756183033,0.09367462,217.51,217.46,13.91600093]
[1731756183229,13.91600093,217.54,217.47,13.91600093]
[1731756183543,13.91600093,217.52,217.45,13.91600093]
[1731756183851,13.91600093,217.52,217.42,70.0]
[1731756184050,13.91600093,217.52,217.45,13.91600093]
[1731756185254,13.91600093,217.53,217.42,70.0]
[1731756185429,13.91600093,217.53,217.46,13.91600093]
[1731756185829,14.00967555,217.55,217.47,13.91600093]
[1731756186129,14.00967555,217.55,217.5,13.91600093]
[1731756186130,0.09367462,217.55,217.5,13.91600093]
[1731756186549,4.5956,217.6,217.5,13.91600093]
[1731756186550,13.91600093,217.58,217.5,13.91600093]
[1731756187237,13.91600093,217.55,217.45,70.0]
[1731756187440,13.91600093,217.55,217.48,13.91600093]
[1731756187748,14.00967555,217.54,217.47,13.91600093]
[1731756187930,0.09367462,217.54,217.48,13.91600093]
[1731756188551,14.00967555,217.54,217.47,13.91600093]
[1731756188935,13.91600093,217.53,217.46,13.91600093]
[1731756189352,13.91600093,217.54,217.47,13.91600093]
[1731756189544,13.91600093,217.53,217.45,70.0]
[1731756189855,13.91600093,217.52,217.45,13.91600093]
[1731756190041,13.91600093,217.51,217.44,13.91600093]
[1731756190634,13.91600093,217.51,217.42,70.0]
[1731756190857,13.91600093,217.51,217.44,13.91600093]
[1731756191451,13.91600093,217.52,217.45,13.91600093]
[1731756194868,13.91600093,217.5,217.43,13.91600093]
[1731756195036,13.91600093,217.49,217.42,13.91600093]
[1731756195238,13.91600093,217.48,217.41,13.91600093]
[1731756196856,13.91600093,217.49,217.42,13.91600093]
[1731756197055,13.91600093,217.48,217.39,0.12549]
[1731756197255,13.91600093,217.47,217.36,22.8554]
[1731756197557,13.91600093,217.47,217.4,13.91600093]
[1731756198053,13.91600093,217.47,217.39,13.91600093]
[1731756198358,13.91600093,217.46,217.38,13.91600093]
[1731756199365,13.91600093,217.45,217.36,22.8554]
[1731756199663,13.91600093,217.44,217.36,30.29330093]
[1731756199856,0.09367462,217.47,217.39,13.91600093]
[1731756200054,13.91600093,217.48,217.4,13.91600093]
[1731756201336,13.91600093,217.47,217.4,13.91600093]
[1731756201534,13.91600093,217.47,217.39,13.91600093]
[1731756201765,13.91600093,217.47,217.4,13.91600093]
[1731756202761,13.91600093,217.49,217.41,13.91600093]
[1731756204352,13.91600093,217.49,217.42,13.91600093]
[1731756204753,29.24100093,217.51,217.43,13.91600093]
[1731756204948,15.325,217.51,217.45,13.91600093]
[1731756206842,13.91600093,217.53,217.45,13.91600093]
[1731756207044,15.325,217.56,217.5,13.91600093]
[1731756208069,0.09367462,217.55,217.43,70.1]
[1731756208359,13.91600093,217.51,217.44,13.91600093]
[1731756208568,0.09367462,217.54,217.45,13.91600093]
[1731756208759,29.24100093,217.56,217.49,13.91600093]
[1731756208967,0.09367462,217.55,217.41,70.0]
[1731756209153,15.325,217.56,217.43,13.91600093]
[1731756209154,13.91600093,217.51,217.43,13.91600093]
[1731756209487,13.91600093,217.52,217.45,13.91600093]
[1731756209664,0.09367462,217.55,217.48,13.91600093]
[1731756209854,13.91600093,217.54,217.47,13.91600093]
[1731756210171,13.91600093,217.54,217.46,13.91600093]
[1731756210464,0.09367462,217.53,217.46,13.91600093]
[1731756210662,13.91600093,217.53,217.46,13.91600093]
[1731756210861,13.91600093,217.53,217.44,70.0]
[1731756210862,15.325,217.56,217.49,13.91600093]
[1731756211246,29.24100093,217.56,217.48,13.91600093]
[1731756211855,13.91600093,217.55,217.45,23.902374]
[1731756212065,13.91600093,217.55,217.48,13.91600093]
[1731756212368,29.24100093,217.56,217.49,13.91600093]
[1731756213564,13.91600093,217.59,217.47,70.0]
[1731756213767,13.91600093,217.6,217.52,13.91600093]
[1731756214267,13.91600093,217.6,217.47,83.91600093]
[1731756214268,13.91600093,217.58,217.47,70.0]
[1731756214447,13.91600093,217.58,217.51,13.91600093]
[1731756215465,13.91600093,217.58,217.5,13.91600093]
[1731756216048,13.91600093,217.56,217.48,13.91600093]
[1731756216447,13.91600093,217.54,217.45,15.1496]
[1731756216654,13.91600093,217.56,217.48,13.91600093]
[1731756217066,13.91600093,217.57,217.5,13.91600093]
[1731756217271,13.91600093,217.58,217.51,13.91600093]
[1731756217663,13.91600093,217.59,217.51,13.91600093]
[1731756217859,13.91600093,217.57,217.49,13.91600093]
[1731756218066,13.91600093,217.58,217.5,13.91600093]
[1731756218261,13.91600093,217.58,217.51,13.91600093]
[1731756219267,13.91600093,217.59,217.51,13.91600093]
[1731756222363,13.91600093,217.62,217.54,13.91600093]
[1731756223878,15.209,217.63,217.56,13.91600093]
[1731756223879,29.12500093,217.63,217.56,13.91600093]
[1731756224262,29.12500093,217.63,217.55,13.91600093]
[1731756224466,13.91600093,217.6,217.53,13.91600093]
[1731756224779,13.91600093,217.59,217.48,23.902374]
[1731756224982,13.91600093,217.57,217.5,13.91600093]
[1731756225862,13.91600093,217.58,217.5,13.91600093]
[1731756227665,13.91600093,217.59,217.51,13.91600093]
[1731756227864,13.91600093,217.58,217.5,13.91600093]
[1731756229076,13.91600093,217.57,217.49,13.91600093]
[1731756229279,13.91600093,217.55,217.47,83.91600093]
[1731756229669,13.91600093,217.55,217.48,13.91600093]
[1731756231184,13.91600093,217.55,217.47,13.91600093]
[1731756231365,13.91600093,217.52,217.44,13.91600093]
[1731756231767,13.91600093,217.51,217.44,13.91600093]
[1731756232386,13.91600093,217.49,217.42,13.91600093]
[1731756232779,13.91600093,217.48,217.41,13.91600093]
[1731756233584,13.91600093,217.46,217.36,28.85224521]
[1731756233788,4.597,217.53,217.37,13.91600093]
[1731756233789,13.91600093,217.45,217.37,13.91600093]
[1731756233968,13.91600093,217.44,217.37,13.91600093]
[1731756234171,13.91600093,217.44,217.36,13.91600093]
[1731756234567,0.09367462,217.44,217.38,13.91600093]
[1731756234768,36.30150093,217.45,217.38,13.91600093]
[1731756235192,13.91600093,217.44,217.37,13.91600093]
[1731756235877,13.91600093,217.44,217.36,13.91600093]
[1731756236179,13.91600093,217.44,217.37,13.91600093]
[1731756236666,36.30150093,217.45,217.38,13.91600093]
[1731756236862,16.1719,217.45,217.41,13.91600093]
[1731756237276,16.1719,217.45,217.4,13.91600093]
[1731756237585,16.1719,217.45,217.39,13.91600093]
[1731756237791,16.1719,217.45,217.4,13.91600093]